bitfinex/quotes_ETHUSD_20240602
["timestamp","ask_amount","ask_price","bid_price","bid_amount"]
[1717297686178,1.36285205,3810.8,3810.4,0.707]
[1717297686349,1.36285205,3810.9,3810.4,0.707]
[1717297686848,3.98700205,3810.8,3810.4,0.707]
[1717297687196,3.98700205,3810.8,3810.2,0.707]
[1717297687349,1.36285205,3810.7,3810.2,0.707]
[1717297688370,1.36285205,3810.6,3810.2,0.707]
[1717297689090,3.79505205,3810.4,3809.7,0.707]
[1717297689315,3.98732205,3810.3,3809.7,0.707]
[1717297689531,2.62447,3810.3,3809.8,0.561969]
[1717297689824,2.62447,3810.3,3809.8,1.268969]
[1717297690024,3.98732205,3810.3,3809.5,2.2878]
[1717297690236,2.6246,3810.1,3809.7,0.707]
[1717297690576,2.6246,3810.1,3809.4,0.29160322]
[1717297690808,2.6246,3810.1,3809.6,0.707]
[1717297691381,0.03943799,3810.0,3809.6,0.707]
[1717297691916,0.03943799,3810.0,3809.6,1.29815432]
[1717297693702,0.03943799,3810.0,3809.9,0.707]
[1717297693918,1.36285205,3810.6,3809.9,0.707]
[1717297694126,1.36285205,3810.6,3810.5,0.707]
[1717297695506,1.36285205,3810.6,3809.9,2.62474]
[1717297695723,1.36285205,3810.6,3810.0,0.661054]
[1717297696024,1.36285205,3810.5,3810.0,0.661054]
[1717297696317,2.62412,3810.8,3810.0,0.661054]
[1717297696318,1.36285205,3810.4,3810.0,0.661054]
[1717297696507,1.36285205,3810.5,3810.1,0.3285794]
[1717297697228,1.36285205,3810.5,3810.2,2.62452]
[1717297697425,1.36285205,3810.5,3810.3,2.459]
[1717297697629,0.03968257,3810.4,3810.3,2.459]
[1717297697792,0.03968257,3810.4,3810.2,2.62452]
[1717297698816,0.03968257,3810.4,3810.0,2.459]
[1717297699098,0.03968257,3810.4,3810.1,0.2459]
[1717297699312,1.40253462,3810.4,3810.1,0.2459]
[1717297700202,0.03968257,3810.4,3810.1,0.2459]
[1717297702150,1.40253462,3810.4,3810.1,0.2459]
[1717297702648,0.03968257,3810.4,3810.1,0.2459]
[1717297702846,0.03968257,3810.4,3810.2,0.532963]
[1717297703645,0.03968257,3810.4,3810.3,2.62446]
[1717297703830,0.03968257,3810.4,3810.3,5.08346]
[1717297704030,1.63542247,3811.0,3810.3,5.08346]
[1717297704031,1.36285205,3810.6,3810.3,5.08346]
[1717297704210,1.36285205,3810.6,3810.4,0.7314423]
[1717297704724,1.36285205,3810.7,3810.4,0.7314423]
[1717297704925,1.36285205,3810.6,3810.4,0.7314423]
[1717297705110,1.36285205,3810.6,3810.5,0.58149023]
[1717297705306,1.36285205,3810.7,3810.5,3.20574023]
[1717297705512,1.63542247,3811.0,3810.5,3.20574023]
[1717297705513,1.36285205,3810.6,3810.5,3.20574023]
[1717297705747,1.36285205,3810.6,3810.5,2.62425]
[1717297707542,1.36285205,3810.7,3810.5,2.62425]
[1717297707747,1.36285205,3810.6,3810.5,3.132575]
[1717297709713,1.36285205,3810.6,3810.5,0.508325]
[1717297710049,1.63542247,3810.9,3810.1,2.62457]
[1717297710248,1.36628027,3810.5,3810.1,2.62457]
[1717297710451,1.36628027,3810.5,3810.2,0.262457]
[1717297710661,1.36628027,3810.4,3810.1,2.62457]
[1717297712521,0.03979171,3810.3,3810.1,2.62457]
[1717297714356,1.40607198,3810.3,3810.1,2.62457]
[1717297715351,1.40607198,3810.3,3809.7,2.62482]
[1717297715703,1.40607198,3810.3,3809.7,3.114522]
[1717297715704,1.36628027,3810.1,3809.7,3.114522]
[1717297715854,1.36628027,3810.2,3810.1,2.2809]
[1717297716352,1.36628027,3810.3,3810.1,2.2809]
[1717297716598,2.62409,3810.9,3810.1,2.67879]
[1717297716599,1.36628027,3810.4,3810.1,2.67879]
[1717297717442,1.36628027,3810.4,3810.1,5.30339]
[1717297717955,1.36628027,3810.3,3810.1,5.30339]
[1717297718144,1.36628027,3810.4,3810.2,0.700139]
[1717297720265,1.36647036,3810.4,3810.2,0.700139]
[1717297720980,1.36647036,3810.4,3810.3,2.62446]
[1717297721119,1.36647036,3810.4,3810.3,3.3945989]
[1717297721528,1.36647036,3810.4,3810.3,4.1015989]
[1717297722128,1.36647036,3810.5,3810.3,4.1015989]
[1717297722467,1.36647036,3810.5,3810.4,0.707]
[1717297723178,1.63976443,3810.8,3810.4,0.707]
[1717297723358,1.63976443,3810.8,3810.6,0.707]
[1717297724066,1.63976443,3810.9,3810.6,0.707]
[1717297724740,1.63976443,3810.8,3810.6,0.707]
[1717297725130,1.63976443,3810.8,3810.3,2.62446]
[1717297725331,1.36652138,3810.5,3810.3,2.62446]
[1717297725526,1.36652138,3810.5,3810.3,3.33146]
[1717297726467,1.36652138,3810.5,3810.2,0.707]
[1717297726770,1.36652138,3810.3,3809.9,2.62467]
[1717297726998,1.36652138,3810.3,3810.0,0.707]
[1717297727798,0.03955586,3810.2,3809.9,2.62467]
[1717297728118,1.36652138,3810.2,3809.7,0.707]
[1717297728257,1.36652138,3810.0,3809.7,0.707]
[1717297728659,0.03945989,3809.9,3809.7,0.707]
[1717297730155,1.36652138,3810.1,3809.7,0.707]
[1717297730356,0.03954966,3809.8,3809.7,0.707]
[1717297730557,1.36652138,3810.0,3809.7,0.707]
[1717297730760,0.03942789,3809.8,3809.7,0.707]
[1717297730973,1.36652138,3810.1,3809.7,1.040194]
[1717297731178,0.03942789,3809.8,3809.7,0.707]
[1717297731392,1.36652138,3810.1,3809.7,0.707]
[1717297731569,0.03942789,3809.8,3809.7,0.707]
[1717297731902,4.26423565,3810.4,3809.7,0.707]
[1717297732064,0.03942789,3809.8,3809.7,0.707]
[1717297732268,5.41016647,3810.5,3809.1,2.3786]
[1717297732269,2.4639,3810.1,3809.2,2.62517]
[1717297732592,2.4639,3810.1,3809.3,0.707]
[1717297732756,0.03949188,3810.0,3809.3,0.707]
[1717297733390,0.03949188,3810.0,3809.2,2.62517]
[1717297733691,0.03949188,3810.0,3809.3,0.707]
[1717297734264,0.03949188,3810.0,3809.5,0.707]
[1717297738471,1.36552629,3809.9,3809.5,0.707]
[1717297738808,0.03925082,3809.8,3809.5,0.707]
[1717297739175,1.40477711,3809.8,3809.5,0.707]
[1717297740912,0.03925082,3809.8,3809.5,0.707]
[1717297743513,2.62488,3809.7,3808.9,2.3786]
[1717297743811,1.40483489,3809.6,3809.5,0.707]
[1717297744112,0.0393086,3809.6,3809.1,0.707]
[1717297744279,3.68823489,3809.6,3809.1,0.707]
[1717297746420,2.3227086,3809.6,3809.1,0.707]
[1717297746599,3.68823489,3809.6,3809.1,0.707]
[1717297746805,2.3227086,3809.6,3809.1,0.707]
[1717297750732,2.3227086,3809.6,3809.0,2.62534]
[1717297750922,3.68823489,3809.6,3809.0,3.33234]
[1717297751217,3.68823489,3809.6,3808.6,5.10998]
[1717297751394,2.62504,3809.5,3808.7,0.24844]
[1717297751595,0.03892894,3809.4,3808.7,0.24844]
[1717297751791,2.62515,3809.3,3808.7,0.95544]
[1717297752023,0.03886494,3809.2,3808.7,0.95544]
[1717297752321,0.03886494,3809.2,3808.7,0.707]
[1717297752527,0.03886494,3809.2,3808.9,0.707]
[1717297752910,2.62515,3809.3,3808.9,0.707]
[1717297753113,0.03871114,3809.1,3808.9,0.707]
[1717297753288,2.62515,3809.3,3808.9,0.707]
[1717297753488,0.03858929,3809.0,3808.9,0.707]
[1717297753697,2.62515,3809.3,3808.9,0.707]
[1717297753883,0.03858929,3809.0,3808.9,0.707]
[1717297754110,2.62515,3809.3,3808.9,0.707]
[1717297754309,0.03871108,3809.0,3808.9,0.707]
[1717297754519,2.62515,3809.3,3808.9,0.707]
[1717297755024,0.03877509,3809.2,3808.9,0.707]
[1717297755319,2.62515,3809.3,3808.9,0.707]
[1717297755528,0.0386213,3809.1,3808.9,0.707]
[1717297755700,2.62515,3809.3,3808.9,0.707]
[1717297755896,0.03871108,3809.0,3808.9,0.707]
[1717297756407,2.62515,3809.3,3808.7,0.707]
[1717297756611,0.03877509,3809.2,3808.7,0.707]
[1717297756921,2.4933,3809.1,3808.9,0.707]
[1717297757288,0.03871108,3809.0,3808.9,0.707]
[1717297759657,0.03871108,3809.0,3808.8,0.707]
[1717297763132,0.03871108,3809.0,3808.6,1.217998]
[1717297769139,0.03871108,3809.0,3808.7,0.3843638]
[1717297770229,0.03871108,3809.0,3808.6,1.217998]
[1717297774532,0.03871108,3809.0,3808.7,2.62556]
[1717297774709,0.03871108,3809.0,3808.9,0.707]
[1717297775038,1.36226652,3809.4,3808.9,3.0462]
[1717297775203,5.41016647,3809.6,3808.9,3.0462]
[1717297775204,1.36226652,3809.5,3809.3,0.707]
[1717297778759,1.36398098,3809.5,3809.3,0.707]
[1717297780358,1.36398098,3809.4,3809.3,0.707]
[1717297784668,1.63677717,3809.7,3809.3,0.707]
[1717297784963,1.36479082,3809.4,3809.3,0.707]
[1717297785154,1.36479082,3809.4,3809.3,1.070689]
[1717297785350,1.63677717,3809.7,3809.3,1.070689]
[1717297785555,1.63677717,3809.7,3809.3,0.707]
[1717297786960,1.36494461,3809.4,3809.3,0.707]
[1717297787749,0.0385222,3809.4,3809.3,0.707]
[1717297788069,1.63677717,3809.7,3809.3,0.707]
[1717297788365,1.63677717,3809.7,3809.6,0.707]
[1717297788576,5.41016647,3810.1,3809.6,1.274127]
[1717297788874,1.3655965,3809.8,3809.6,1.274127]
[1717297791152,1.3655965,3809.9,3809.6,1.274127]
[1717297792232,1.3655965,3809.9,3809.7,0.6238397]
[1717297792449,1.3655965,3810.2,3809.8,3.0462]
[1717297792672,1.3655965,3810.2,3810.1,0.707]
[1717297792877,1.3655965,3810.3,3810.1,0.707]
[1717297793077,1.3655965,3810.4,3810.2,0.707]
[1717297793673,6.77576297,3810.5,3810.2,0.707]
[1717297793876,6.77576297,3810.5,3810.4,0.707]
[1717297795140,5.41016647,3810.5,3810.4,0.707]
[1717297795537,6.77576297,3810.5,3810.4,0.707]
[1717297796238,5.41016647,3810.5,3810.4,0.707]
[1717297797362,1.3655965,3810.6,3810.4,0.707]
[1717297798300,1.3655965,3810.7,3810.4,0.707]
[1717297800443,1.3655965,3810.7,3810.2,0.707]
[1717297802067,1.3655965,3810.8,3810.2,0.707]
[1717297802793,0.039127,3810.7,3810.2,0.707]
[1717297802963,0.039127,3810.7,3810.2,1.04016]
[1717297804495,3.98624545,3810.9,3810.2,1.04016]
[1717297804699,0.03927982,3810.6,3810.2,1.04016]
[1717297804902,3.98624545,3810.9,3810.2,1.04016]
[1717297805108,0.03924783,3810.5,3810.2,1.04016]
[1717297805399,3.98624545,3810.9,3810.3,0.366476]
[1717297805593,0.03921585,3810.4,3810.2,0.707]
[1717297806097,0.03918386,3810.3,3810.2,0.707]
[1717297806600,3.98624545,3810.9,3810.2,0.707]
[1717297806897,0.03918386,3810.3,3810.2,0.707]
[1717297807191,3.98624545,3810.9,3810.2,1.04016]
[1717297807363,0.03930561,3810.3,3810.2,1.04016]
[1717297807897,0.03918386,3810.3,3810.2,1.04016]
[1717297808396,0.03930561,3810.3,3810.2,1.04016]
[1717297808598,2.62405,3810.9,3810.2,1.04016]
[1717297808800,0.03930561,3810.3,3810.1,2.6246]
[1717297809101,3.64809545,3810.8,3810.1,2.6246]
[1717297809263,0.03927363,3810.2,3810.1,2.6246]
[1717297809462,2.62419,3810.7,3810.1,2.6246]
[1717297809663,0.03927363,3810.2,3810.1,2.6246]
[1717297809899,2.62419,3810.7,3810.0,0.707]
[1717297810119,0.03927363,3810.2,3810.0,0.707]
[1717297810287,2.62419,3810.7,3810.0,0.707]
[1717297810695,0.03940156,3810.6,3810.0,0.707]
[1717297811504,0.03940156,3810.6,3809.8,0.707]
[1717297811505,2.2859,3810.4,3809.8,0.707]
[1717297811807,2.62447,3810.3,3809.4,2.62503]
[1717297811977,2.62447,3810.3,3809.7,0.707]
[1717297812215,2.66377561,3810.3,3809.7,0.707]
[1717297813366,2.66377561,3810.3,3809.9,0.707]
[1717297814169,2.66377561,3810.3,3809.7,0.707]
[1717297820604,4.02528675,3810.3,3809.7,0.707]
[1717297824025,2.66377561,3810.3,3809.7,0.707]
[1717297824529,4.02528675,3810.3,3809.7,0.707]
[1717297825031,2.66377561,3810.3,3809.7,0.707]
[1717297825213,4.02528675,3810.3,3809.7,0.707]
[1717297827139,1.36151114,3810.2,3809.7,0.707]
[1717297827736,0.03903261,3810.1,3809.7,0.707]
[1717297829735,2.2575,3809.9,3809.4,2.62503]
[1717297830032,3.61901114,3809.9,3809.4,2.62503]
[1717297830193,0.0390584,3809.8,3809.4,2.62503]
[1717297830392,0.0390584,3809.8,3809.0,5.07521]
[1717297830633,1.40454825,3809.8,3809.1,0.707]
[1717297830791,1.36548985,3809.7,3809.1,0.707]
[1717297831323,0.03899441,3809.6,3809.1,0.707]
[1717297831512,0.03899441,3809.6,3809.0,2.62531]
[1717297831712,0.03899441,3809.6,3809.0,3.33231]
[1717297833641,1.40481092,3809.6,3809.0,3.33231]
[1717297834555,1.36581651,3809.5,3809.0,3.33231]
[1717297834711,1.36581651,3809.5,3809.0,0.707]
[1717297834914,2.30552381,3809.4,3809.0,0.707]
[1717297837523,2.30552381,3809.4,3808.7,2.4499]
[1717297837699,2.30552381,3809.4,3809.0,0.707]
[1717297844352,2.30552381,3809.4,3809.2,0.707]
[1717297848360,2.30552381,3809.4,3809.0,0.707]
[1717297849880,0.03862381,3809.4,3808.8,2.62543]
[1717297850030,0.03862381,3809.4,3809.3,0.707]
[1717297850243,4.91283,3809.7,3809.3,0.707]
[1717297850244,6.27753282,3809.7,3809.3,0.707]
[1717297850538,1.36470282,3809.6,3809.3,0.707]
[1717297850747,0.0386698,3809.5,3809.3,0.707]
[1717297851122,0.0386698,3809.5,3809.4,2.2507]
[1717297851325,1.36467669,3809.7,3809.4,2.54647]
[1717297851554,1.36467669,3809.8,3809.6,0.707]
[1717297852148,5.41016647,3810.0,3809.6,0.707]
[1717297852352,1.36479667,3809.8,3809.6,0.707]
[1717297852565,1.36479667,3809.7,3809.6,0.707]
[1717297855840,1.36479667,3809.8,3809.6,0.707]
[1717297856179,1.36479667,3809.8,3809.4,2.2507]
[1717297856180,1.36479667,3809.8,3809.7,0.707]
[1717297856601,1.36479667,3809.8,3809.0,2.62535]
[1717297856602,2.4982,3809.8,3809.0,2.62535]
[1717297856758,1.36529733,3809.5,3809.1,0.707]
[1717297857814,1.36529733,3809.5,3809.3,0.707]
[1717297858296,1.36529733,3809.4,3809.3,0.707]
[1717297862656,1.40398389,3809.4,3809.3,0.707]
[1717297865353,1.40398389,3809.4,3809.0,2.62535]
[1717297865551,1.40398389,3809.4,3809.2,0.707]
[1717297866994,1.40398389,3809.4,3809.0,0.707]
[1717297867356,1.36529733,3809.3,3808.7,2.62555]
[1717297867557,0.03850077,3809.2,3809.1,0.707]
[1717297867760,1.36529733,3809.3,3809.1,0.707]
[1717297867995,0.03850077,3809.2,3809.1,0.707]
[1717297868172,1.36529733,3809.3,3809.1,0.707]
[1717297868369,0.03850077,3809.2,3809.1,0.707]
[1717297868798,1.36529733,3809.3,3809.1,0.707]
[1717297868956,0.03850077,3809.2,3809.1,0.707]
[1717297869158,1.36529733,3809.3,3809.1,0.707]
[1717297869525,0.03850077,3809.2,3809.1,0.707]
[1717297869880,1.36529733,3809.3,3809.1,0.707]
[1717297870301,0.03850077,3809.2,3809.1,0.707]
[1717297870475,1.4037981,3809.2,3809.1,0.707]
[1717297870691,1.36529733,3809.2,3809.1,0.707]
[1717297871004,1.4037981,3809.2,3809.1,0.707]
[1717297873422,0.03850077,3809.2,3809.1,0.707]
[1717297873893,1.637756,3809.5,3809.1,0.707]
[1717297873894,2.62508,3809.4,3809.1,0.707]
[1717297874095,0.0384186,3809.2,3809.1,0.707]
[1717297874402,0.03854039,3809.2,3809.1,0.707]
[1717297874637,2.62508,3809.4,3809.1,0.707]
[1717297874810,0.0384186,3809.2,3809.1,0.707]
[1717297875012,2.62508,3809.4,3809.1,0.707]
[1717297875170,0.03854039,3809.2,3808.4,5.03795]
[1717297875369,4.262836,3809.4,3808.9,0.707]
[1717297875370,1.36728842,3809.0,3808.9,0.707]
[1717297875616,1.4057648,3809.0,3808.9,0.707]
[1717297876008,0.03847638,3809.0,3808.1,5.05477]
[1717297876185,1.36754763,3808.8,3808.4,0.707]
[1717297876804,0.03814046,3808.7,3808.4,0.707]
[1717297876978,1.40568809,3808.7,3808.1,5.05477]
[1717297877189,1.36754763,3808.7,3808.5,0.707]
[1717297877394,0.03813522,3808.6,3808.5,0.707]
[1717297877803,1.36754763,3808.7,3808.5,0.707]
[1717297878000,0.03813522,3808.6,3808.5,0.707]
[1717297881990,1.36754763,3808.7,3808.5,0.707]
[1717297882194,0.03813522,3808.6,3808.5,0.707]
[1717297883022,0.03813522,3808.6,3807.3,3.0]
[1717297883023,0.03813522,3808.6,3807.9,2.4393]
[1717297883233,1.36754763,3808.5,3807.9,3.1463]
[1717297883720,1.40549431,3808.4,3807.9,3.1463]
[1717297884234,0.03794668,3808.4,3808.1,0.707]
[1717297885197,0.03794668,3808.4,3808.0,0.707]
[1717297886702,3.99323763,3808.6,3808.0,0.707]
[1717297887039,3.99323763,3808.6,3807.9,2.4393]
[1717297887040,2.3938,3808.5,3807.5,2.62639]
[1717297887230,1.257,3808.4,3807.4,2.4393]
[1717297887527,1.257,3808.4,3807.2,3.1463]
[1717297887528,2.07454763,3808.2,3807.2,3.1463]
[1717297888040,0.037586,3808.1,3807.4,0.707]
[1717297888388,2.62605,3808.0,3807.4,0.707]
[1717297888819,0.03741232,3807.9,3807.3,0.707]
[1717297890295,0.03741232,3807.9,3807.3,1.284289]
[1717297890527,0.03741232,3807.9,3807.5,0.707]
[1717297892346,0.03741232,3807.9,3807.2,5.06589]
[1717297892347,0.03741232,3807.9,3807.2,5.77289]
[1717297892641,0.03741232,3807.9,3807.4,0.707]
[1717297893610,0.03741232,3807.9,3807.2,5.06589]
[1717297893818,0.03741232,3807.9,3807.4,0.707]
[1717297898115,2.4978,3807.8,3807.2,3.133179]
[1717297898536,0.03713759,3807.7,3807.2,3.840179]
[1717297899199,0.03713759,3807.7,3807.2,3.133179]
[1717297899400,0.03713759,3807.7,3806.9,5.1267]
[1717297899743,0.03713759,3807.7,3807.1,0.707]
[1717297901040,0.03713759,3807.7,3807.2,0.707]
[1717297901536,0.03713759,3807.7,3807.0,0.707]
[1717297903134,2.62636,3807.6,3806.9,2.6268]
[1717297903460,0.03703242,3807.5,3807.0,0.707]
[1717297905617,0.03703242,3807.5,3806.9,2.6268]
[1717297905814,0.03703242,3807.5,3806.9,0.707]
[1717297907002,0.03703242,3807.5,3807.1,0.707]
[1717297910510,2.4978,3807.4,3807.1,0.707]
[1717297910912,0.03696834,3807.3,3806.7,2.4999]
[1717297911144,0.03696834,3807.3,3807.2,0.707]
[1717297911321,2.62636,3807.6,3807.2,0.707]
[1717297911853,0.03703242,3807.5,3807.2,0.707]
[1717297914135,0.03703242,3807.5,3807.4,0.707]
[1717297914549,2.62613,3807.9,3807.4,0.707]
[1717297914786,2.62613,3807.9,3807.2,2.4999]
[1717297915066,0.03711309,3807.8,3807.6,0.707]
[1717297915442,0.03711309,3807.8,3807.4,0.707]
[1717297917057,0.03711309,3807.8,3807.7,0.707]
[1717297917562,8.03609647,3808.2,3807.7,0.707]
[1717297917734,2.62593,3808.2,3807.7,0.707]
[1717297917928,0.03728111,3808.1,3807.7,0.707]
[1717297920767,1.39793361,3808.1,3807.7,0.707]
[1717297922127,1.3606525,3808.0,3807.7,0.707]
[1717297922344,0.03740572,3807.9,3807.7,0.707]
[1717297922571,1.3606525,3808.0,3807.7,0.707]
[1717297922884,2.3555,3808.4,3807.7,0.707]
[1717297922885,0.03728389,3807.9,3807.7,2.6262]
[1717297923049,0.03728389,3807.9,3807.8,0.707]
[1717297923252,1.36625868,3808.1,3807.3,2.62652]
[1717297923508,0.03725304,3807.9,3807.6,0.707]
[1717297923796,0.03722101,3807.8,3807.6,0.707]
[1717297923947,1.36625868,3808.0,3807.6,0.707]
[1717297924147,0.03737487,3807.9,3807.6,0.707]
[1717297924845,1.40363355,3807.9,3807.6,0.707]
[1717297925656,0.03737487,3807.9,3807.6,0.707]
[1717297925852,1.40465092,3807.9,3807.6,0.707]
[1717297926083,1.36727605,3807.9,3807.6,0.707]
[1717297926285,1.40449706,3807.8,3807.6,0.707]
[1717297926675,0.03722101,3807.8,3807.6,0.707]
[1717297927186,1.40449706,3807.8,3807.6,0.707]
[1717297929318,1.36727605,3807.7,3807.6,0.707]
[1717297929618,1.40446503,3807.7,3807.6,0.707]
[1717297929978,1.40446503,3807.7,3807.6,3.340352]
[1717297930188,0.03718898,3807.7,3807.6,3.340352]
[1717297930382,1.36727605,3807.9,3807.7,2.62625]
[1717297930610,1.36727605,3807.9,3807.8,0.707]
[1717297931023,9.95003295,3808.6,3807.9,2.62611]
[1717297931024,1.36727605,3808.0,3807.9,2.62611]
[1717297931320,1.36727605,3808.0,3807.9,3.33311]
[1717297931498,1.36727605,3808.0,3807.9,3.9297562]
[1717297932220,1.36727605,3808.0,3807.9,6.2297562]
[1717297933320,1.36727605,3808.1,3807.9,6.2297562]
[1717297933484,1.36727605,3808.1,3807.9,5.63311]
[1717297935324,1.36727605,3808.2,3807.9,5.63311]
[1717297935527,1.36727605,3808.2,3808.1,0.707]
[1717297935937,9.67657774,3808.6,3808.1,0.707]
[1717297935938,1.64073127,3808.4,3808.1,0.707]
[1717297936232,1.64427874,3808.4,3808.1,0.707]
[1717297936456,1.64427874,3808.5,3808.1,0.707]
[1717297937638,0.03716559,3808.4,3808.1,0.707]
[1717297937956,0.03716559,3808.4,3808.3,0.707]
[1717297938344,0.03716559,3808.4,3808.1,0.707]
[1717297938633,1.37004907,3808.2,3808.1,0.707]
[1717297939026,1.4070288,3808.2,3808.1,0.707]
[1717297939223,1.4070288,3808.2,3807.9,3.33311]
[1717297939537,1.36989347,3808.1,3807.9,3.33311]
[1717297939907,0.03691567,3808.0,3807.9,3.33311]
[1717297940841,1.36989347,3808.2,3807.9,3.33311]
[1717297941007,0.03691567,3808.0,3807.9,3.33311]
[1717297941222,1.36989347,3808.2,3807.9,3.33311]
[1717297941423,0.03691567,3808.0,3807.9,3.33311]
[1717297941623,1.36989347,3808.2,3807.9,3.33311]
[1717297941823,0.0370375,3808.0,3807.9,2.62611]
[1717297942076,1.36989347,3808.2,3807.9,3.33311]
[1717297942226,0.03691567,3808.0,3807.9,3.33311]
[1717297942558,1.36989347,3808.2,3807.9,3.33311]
[1717297942734,0.03691567,3808.0,3807.9,3.33311]
[1717297943259,1.36989347,3808.2,3807.9,3.33311]
[1717297943464,0.03709147,3808.0,3807.9,3.33311]
[1717297943664,1.36989347,3808.2,3807.9,3.33311]
[1717297943821,0.03696964,3808.0,3807.9,3.33311]
[1717297944027,1.36989347,3808.2,3807.9,3.33311]
[1717297944238,0.03696964,3808.0,3807.9,3.33311]
[1717297944557,1.36989347,3808.2,3807.9,3.33311]
[1717297944732,0.03709147,3808.0,3807.9,3.33311]
[1717297945056,0.03696964,3808.0,3807.9,3.33311]
[1717297945445,1.36989347,3808.3,3807.9,3.33311]
[1717297945641,0.03670631,3808.0,3807.9,3.33311]
[1717297945859,1.36989347,3808.3,3807.9,3.33311]
[1717297946033,0.03670631,3808.0,3807.9,3.33311]
[1717297946240,1.36989347,3808.3,3807.9,3.33311]
[1717297946442,0.03682814,3808.0,3807.9,3.33311]
[1717297946771,0.03682814,3808.0,3807.9,0.707]
[1717297947008,2.3258,3808.3,3807.6,2.62631]
[1717297947009,1.36989347,3808.1,3807.6,2.62631]
[1717297947166,1.40656381,3808.0,3807.7,0.707]
[1717297947865,1.40516616,3808.0,3807.7,0.707]
[1717297948760,1.40513652,3808.0,3807.7,0.707]
[1717297949574,1.40519709,3808.0,3807.7,0.707]
[1717297953199,1.36852675,3807.9,3807.3,4.96982]
[1717297953367,1.36852675,3807.7,3807.5,0.707]
[1717297953898,0.03649085,3807.6,3807.5,0.707]
[1717297956298,1.4050176,3807.6,3807.5,0.707]
[1717297957495,0.03649085,3807.6,3807.5,0.707]
[1717297958118,1.3688983,3807.6,3807.5,0.707]
[1717297958317,1.40538915,3807.6,3807.5,0.707]
[1717297961984,0.03649085,3807.6,3807.5,0.707]
[1717297962183,2.62603,3808.1,3807.5,0.707]
[1717297962435,1.64283653,3807.9,3807.5,0.707]
[1717297962923,0.03655492,3807.8,3807.5,0.707]
[1717297963109,6.61929145,3807.8,3806.9,2.62678]
[1717297963311,1.36878099,3807.4,3807.3,0.707]
[1717297963517,1.64283653,3807.7,3807.3,0.707]
[1717297963712,0.03642678,3807.4,3807.3,0.707]
[1717297964222,1.64283653,3807.7,3807.3,0.707]
[1717297964381,0.03661269,3807.6,3807.3,0.707]
[1717297965689,1.3684431,3807.4,3807.3,0.707]
[1717297966090,1.40486988,3807.4,3807.3,0.707]
[1717297966732,1.40486988,3807.4,3806.9,2.62678]
[1717297967025,1.40486988,3807.4,3807.3,0.707]
[1717297969419,0.03642678,3807.4,3807.3,0.707]
[1717297971442,1.28293004,3807.5,3807.3,0.707]
[1717297971934,0.03526243,3807.4,3807.3,0.707]
[1717297974523,4.26903653,3807.8,3807.3,0.707]
[1717297974728,0.03526243,3807.4,3807.3,0.707]
[1717297974923,4.26903653,3807.8,3807.3,0.707]
[1717297975127,0.03526243,3807.4,3807.3,0.707]
[1717297975300,4.26903653,3807.8,3807.3,0.707]
[1717297975507,0.03514059,3807.4,3807.3,0.707]
[1717297975739,0.55,3807.7,3807.3,0.707]
[1717297976543,0.0353265,3807.6,3807.3,0.707]
[1717297978447,1.36758483,3807.5,3807.3,0.707]
[1717297978672,1.36758483,3807.4,3807.3,0.707]
[1717297978950,0.03514059,3807.4,3807.3,0.707]
[1717297980137,1.40272542,3807.4,3807.3,0.707]
[1717297984259,0.03514059,3807.4,3807.3,0.707]
[1717297984452,1.64283653,3807.7,3807.3,0.707]
[1717297984760,0.03534706,3807.6,3807.3,0.707]
[1717297985563,2.66170706,3807.6,3807.3,0.707]
[1717297986261,4.30454359,3807.6,3807.3,0.707]
[1717297986571,2.66170706,3807.6,3807.3,0.707]
[1717297987461,2.66170706,3807.6,3806.9,5.03008]
[1717297987462,4.30454359,3807.6,3807.1,0.707]
[1717297987670,1.36784195,3807.3,3807.1,0.707]
[1717297987963,1.36784195,3807.3,3807.2,0.573708]
[1717297988159,1.36784195,3807.3,3807.1,0.707]
[1717297988160,0.03521893,3807.2,3807.1,0.707]
[1717297988361,1.36784195,3807.3,3807.1,0.707]
[1717297988587,0.03509707,3807.2,3807.1,0.707]
[1717297989065,1.36784195,3807.3,3807.1,0.707]
[1717297989268,0.03521893,3807.2,3807.1,0.707]
[1717297989424,0.03521893,3807.2,3807.1,1.280708]
[1717297989632,1.36784195,3807.2,3807.1,1.280708]
[1717297990057,1.40293902,3807.2,3807.1,1.280708]
[1717297991833,1.40293902,3807.2,3807.1,0.573708]
[1717297992034,1.40293902,3807.2,3806.9,5.03008]
[1717297992270,1.40293902,3807.2,3807.1,0.707]
[1717297992466,1.40382322,3807.2,3807.1,0.707]
[1717297994503,0.03509707,3807.2,3807.1,0.707]
[1717297994893,1.36872615,3807.3,3807.1,0.707]
[1717297995037,0.03519836,3807.2,3807.1,0.707]
[1717297995475,1.36872615,3807.2,3807.1,0.707]
[1717297995673,1.40380266,3807.2,3807.1,0.707]
[1717297998053,1.40519147,3807.2,3807.1,0.707]
[1717298002715,0.03507651,3807.2,3807.1,0.707]
[1717298002870,1.40519147,3807.2,3807.1,0.707]
[1717298003192,1.40538529,3807.2,3807.1,0.707]
[1717298003354,1.40538529,3807.2,3807.1,1.280708]
[1717298008738,0.03527033,3807.2,3807.1,1.280708]
[1717298009095,1.64413795,3807.5,3807.2,2.62659]
[1717298009297,1.64413795,3807.5,3807.4,0.707]
[1717298010697,1.64413795,3807.5,3807.4,3.5416298]
[1717298011090,1.64413795,3807.7,3807.5,2.62639]
[1717298011408,1.64413795,3807.7,3807.6,0.707]
[1717298011770,1.64413795,3807.8,3807.6,0.707]
[1717298012105,1.64413795,3807.8,3807.7,1.32380198]
[1717298012260,1.64413795,3807.9,3807.7,1.32380198]